fUST/lending_fUST_20240608
["ID","MTS","AMOUNT","RATE_DAILY","PERIOD"]
[328833561,1717855870596,-654.96,0.0002,2]
[328833562,1717855870611,-500.0,0.0002,2]
[328833563,1717855870626,-1480.04,0.0002,2]
[328833564,1717855870642,-877.21,0.0002,2]
[328833565,1717855870656,-619.8,0.0002,2]
[328833566,1717855870671,-266.03251267,0.0002,2]
[328833567,1717855870685,-975.62,0.0002,2]
[328833568,1717855870700,-660.83,0.0002,2]
[328833569,1717855870716,-537.35,0.0002,2]
[328833570,1717855870731,-1571.4,0.0002,2]
[328833571,1717855870747,-920.56,0.0002,2]
[328833572,1717855870761,-732.6,0.0002,2]
[328833573,1717855870776,-500.0,0.0002,2]
[328833574,1717855870791,-1098.5,0.0002,2]
[328833575,1717855870805,-500.0,0.0002,2]
[328833576,1717855870819,-601.82,0.0002,2]
[328833577,1717855870835,-1687.64,0.0002,2]
[328833578,1717855870849,-500.0,0.0002,2]
[328833579,1717855870865,-871.53,0.0002,2]
[328833580,1717855870880,-1512.7,0.0002,2]
[328833581,1717855870894,-528.82,0.0002,2]
[328833582,1717855870910,-500.91,0.0002,2]
[328833583,1717855870926,-828.48,0.0002,2]
[328833584,1717855870941,-1556.87,0.0002,2]
[328833585,1717855870957,-536.0,0.0002,2]
[328833586,1717855870973,-1276.66,0.0002,2]
[328833587,1717855870988,-804.5,0.0002,2]
[328833588,1717855871003,-500.0,0.0002,2]
[328833589,1717855871019,-2000.0,0.0002,2]
[328833590,1717855871034,-707.0,0.0002,2]
[328833591,1717855871049,-2000.0,0.0002,2]
[328833592,1717855871067,-2157.52,0.0002,2]
[328833593,1717855871082,-707.0,0.0002,2]
[328833594,1717855871097,-500.0,0.0002,2]
[328833595,1717855871112,-500.0,0.0002,2]
[328833596,1717855871218,-500.0,0.0002,2]
[328833597,1717855871228,-992.02,0.0002,2]
[328833598,1717855871239,-542.52,0.0002,2]
[328833599,1717855871249,-751.63,0.0002,2]
[328833600,1717855871259,-558.38,0.0002,2]
[328833601,1717855871269,-1485.0,0.0002,2]
[328833602,1717855871279,-516.33,0.0002,2]
[328833603,1717855871288,-1620.66,0.0002,2]
[328833604,1717855871298,-2740.38,0.0002,2]
[328833605,1717855871307,-748.59,0.0002,2]
[328833606,1717855871317,-2769.46,0.0002,2]
[328833607,1717855871326,-545.82,0.0002,2]
[328833608,1717855871337,-1406.26,0.0002,2]
[328833609,1717855871347,-1188.05,0.0002,2]
[328833610,1717855871356,-500.0,0.0002,2]
[328833611,1717855871367,-1936.86,0.0002,2]
[328833612,1717855871377,-500.0,0.0002,2]
[328833613,1717855871387,-3481.6,0.0002,2]
[328833614,1717855871398,-830.79,0.0002,2]
[328833615,1717855871408,-500.0,0.0002,2]
[328833616,1717855871418,-4055.43,0.0002,2]
[328833617,1717855871428,-535.13,0.0002,2]
[328833618,1717855871438,-1711.92,0.0002,2]
[328833619,1717855871447,-7839.29,0.0002,2]
[328833620,1717855871457,-500.0,0.0002,2]
[328833621,1717855871466,-4240.14,0.0002,2]
[328833622,1717855871475,-500.0,0.0002,2]
[328833623,1717855871485,-277.30442089,0.0002,2]
[328833624,1717855871495,-777.81,0.0002,2]
[328833625,1717855871504,-656.61,0.0002,2]
[328833626,1717855871514,-837.81,0.0002,2]
[328833627,1717855871523,-2125.44,0.0002,2]
[328833628,1717855871533,-858.72,0.0002,2]
[328833629,1717855871542,-557.3,0.0002,2]
[328833630,1717855871552,-1581.68,0.0002,2]
[328833631,1717855871562,-2009.83,0.0002,2]
[328833632,1717855871572,-719.8,0.0002,2]
[328833633,1717855871583,-5176.99,0.0002,2]
[328833634,1717855871594,-639.4,0.0002,2]
[328833635,1717855871603,-9141.08,0.0002,2]
[328833636,1717855871613,-9689.53,0.0002,2]
[328833637,1717855871623,-1831.62,0.0002,2]
[328833638,1717855871633,-2465.76,0.0002,2]
[328833639,1717855871643,-1295.654326,0.0002,2]
[328833640,1717855871653,-5196.1,0.0002,2]
[328833641,1717855871662,-784.21,0.0002,2]
[328833642,1717855871672,-500.0,0.0002,2]
[328833643,1717855871683,-2008.87,0.0002,2]
[328833644,1717855871693,-1321.87,0.0002,2]
[328833645,1717855871703,-731.55,0.0002,2]
[328833646,1717855871713,-932.16815469,0.0002,2]
[328833647,1717855871722,-500.48,0.0002,2]
[328833648,1717855871732,-913.11,0.0002,2]
[328833649,1717855871742,-882.37,0.0002,2]
[328833650,1717855871752,-500.0,0.0002,2]
[328833651,1717855871763,-500.0,0.0002,2]
[328833652,1717855871772,-529.22,0.0002,2]
[328833653,1717855871782,-1072.16,0.0002,2]
[328833654,1717855871792,-2705.64,0.0002,2]
[328833655,1717855871802,-500.0,0.0002,2]
[328833656,1717855871813,-620.0010975,0.00020218,2]
[328833657,1717855871822,-1015.43,0.00020273,2]
[328833658,1717855871832,-568.09,0.00020273,2]
[328833659,1717855871842,-561.44,0.00020273,2]
[328833660,1717855871852,-1017.89,0.00020273,4]
[328833661,1717855871862,-500.0,0.00020273,2]
[328833662,1717855871872,-500.0,0.00020273,2]
[328833663,1717855871881,-1462.49,0.00020273,2]
[328833664,1717855871890,-500.0,0.00020273,2]
[328833665,1717855871900,-570.14,0.00020273,2]
[328833666,1717855871910,-1790.87,0.00020273,2]
[328833667,1717855871920,-586.65,0.00020273,2]
[328833668,1717855871930,-654.96,0.00020273,2]
[328833669,1717855871941,-500.0,0.00020273,2]
[328833670,1717855871950,-1480.04,0.00020273,2]
[328833671,1717855871960,-877.21,0.00020273,2]
[328833672,1717855871972,-619.8,0.00020273,2]
[328833673,1717855871983,-975.62,0.00020273,2]
[328833674,1717855871993,-660.83,0.00020273,2]
[328833675,1717855872004,-537.35,0.00020273,2]
[328833676,1717855872015,-1571.4,0.00020273,2]
[328833677,1717855872025,-920.56,0.00020273,2]
[328833678,1717855872034,-732.6,0.00020273,2]
[328833679,1717855872044,-500.0,0.00020273,2]
[328833680,1717855872054,-1098.5,0.00020273,2]
[328833681,1717855872064,-500.0,0.00020273,2]
[328833682,1717855872075,-601.82,0.00020273,2]
[328833683,1717855872085,-1687.64,0.00020273,2]
[328833684,1717855872095,-500.0,0.00020273,2]
[328833685,1717855872105,-871.53,0.00020273,2]
[328833686,1717855872115,-1512.7,0.00020273,2]
[328833687,1717855872125,-528.82,0.00020273,2]
[328833688,1717855872136,-500.91,0.00020273,2]
[328833689,1717855872147,-828.48,0.00020273,2]
[328833690,1717855872157,-1556.87,0.00020273,2]
[328833691,1717855872167,-536.0,0.00020273,2]
[328833692,1717855872177,-1276.66,0.00020273,2]
[328833693,1717855872187,-804.5,0.00020273,2]
[328833694,1717855872196,-500.0,0.00020273,2]
[328833695,1717855872206,-2157.52,0.00020273,2]
[328833696,1717855872216,-500.0,0.00020273,2]
[328833697,1717855872226,-500.0,0.00020273,2]
[328833698,1717855872236,-500.0,0.00020273,2]
[328833699,1717855872246,-992.02,0.00020273,2]
[328833700,1717855872256,-542.52,0.00020273,2]
[328833701,1717855872267,-751.63,0.00020273,2]
[328833702,1717855872277,-558.38,0.00020273,2]
[328833703,1717855872288,-1485.0,0.00020273,2]
[328833704,1717855872297,-516.33,0.00020273,2]
[328833705,1717855872307,-1620.66,0.00020273,2]
[328833706,1717855872317,-2740.38,0.00020273,2]
[328833707,1717855872326,-748.59,0.00020273,2]
[328833708,1717855872336,-2769.46,0.00020273,2]
[328833709,1717855872346,-545.82,0.00020273,2]
[328833710,1717855872357,-1406.26,0.00020273,2]
[328833711,1717855872367,-1188.05,0.00020273,2]
[328833712,1717855872377,-500.0,0.00020273,2]
[328833713,1717855872391,-1936.86,0.00020273,2]
[328833714,1717855872401,-500.0,0.00020273,2]
[328833715,1717855872411,-3481.6,0.00020273,2]
[328833716,1717855872421,-830.79,0.00020273,2]
[328833717,1717855872430,-500.0,0.00020273,2]
[328833718,1717855872441,-4055.43,0.00020273,2]
[328833719,1717855872451,-535.13,0.00020273,2]
[328833720,1717855872460,-1711.92,0.00020273,2]
[328833721,1717855872471,-7839.29,0.00020273,2]
[328833722,1717855872482,-500.0,0.00020273,2]
[328833723,1717855872492,-4240.14,0.00020273,2]
[328833724,1717855872502,-500.0,0.00020273,2]
[328833725,1717855872512,-777.81,0.00020273,2]
[328833726,1717855872521,-656.61,0.00020273,2]
[328833727,1717855872532,-837.81,0.00020273,2]
[328833728,1717855872542,-2125.44,0.00020273,2]
[328833729,1717855872554,-858.72,0.00020273,2]
[328833730,1717855872565,-557.3,0.00020273,2]
[328833731,1717855872574,-1581.68,0.00020273,2]
[328833732,1717855872585,-2009.83,0.00020273,2]
[328833733,1717855872595,-719.8,0.00020273,2]
[328833734,1717855872606,-5176.99,0.00020273,2]
[328833735,1717855872617,-639.4,0.00020273,2]
[328833736,1717855872699,-9141.08,0.00020273,2]
[328833737,1717855872711,-9689.53,0.00020273,2]
[328833738,1717855872721,-1831.62,0.00020273,2]
[328833739,1717855872730,-2465.76,0.00020273,2]
[328833740,1717855872740,-5196.1,0.00020273,2]
[328833741,1717855872751,-784.21,0.00020273,2]
[328833742,1717855872761,-500.0,0.00020273,2]
[328833743,1717855872772,-2008.87,0.00020273,2]
[328833744,1717855872783,-1321.87,0.00020273,2]
[328833745,1717855872793,-731.55,0.00020273,2]
[328833746,1717855872803,-500.48,0.00020273,2]
[328833747,1717855872813,-913.11,0.00020273,2]
[328833748,1717855872823,-882.37,0.00020273,2]
[328833749,1717855872833,-500.0,0.00020273,2]
[328833750,1717855872843,-500.0,0.00020273,2]
[328833751,1717855872854,-529.22,0.00020273,2]
[328833752,1717855872865,-1072.16,0.00020273,2]
[328833753,1717855872875,-2705.64,0.00020273,2]
[328833754,1717855872886,-500.0,0.00020273,2]
[328833755,1717855872896,-393.5030979,0.000203,2]
[328833756,1717855872906,-150.0,0.0002038,2]
[328833757,1717855872916,-1015.43,0.00020547,2]
[328833758,1717855872926,-568.09,0.00020547,2]
[328833759,1717855872935,-561.44,0.00020547,2]
[328833760,1717855872945,-1017.89,0.00020547,4]
[328833761,1717855872955,-317.21687593,0.00020547,2]
[328833762,1717855872965,-500.0,0.00020547,2]
[328833763,1717855872978,-1462.49,0.00020547,2]
[328833764,1717855872988,-500.0,0.00020547,2]
[328833765,1717855872998,-570.14,0.00020547,2]
[328833766,1717855873008,-1790.87,0.00020547,2]
[328833767,1717855873019,-586.65,0.00020547,2]
[328833768,1717855873029,-654.96,0.00020547,2]
[328833769,1717855873039,-500.0,0.00020547,2]
[328833770,1717855873049,-1480.04,0.00020547,2]
[328833771,1717855873061,-877.21,0.00020547,2]
[328833772,1717855873071,-619.8,0.00020547,2]
[328833773,1717855873080,-975.62,0.00020547,2]
[328833774,1717855873090,-660.83,0.00020547,2]
[328833775,1717855873100,-537.35,0.00020547,2]
[328833776,1717855873111,-1571.4,0.00020547,2]
[328833777,1717855873121,-920.56,0.00020547,2]
[328833778,1717855873132,-732.6,0.00020547,2]
[328833779,1717855873142,-200.61097876,0.00020547,2]
[328833780,1717855873153,-1098.5,0.00020547,2]
[328833781,1717855873162,-500.0,0.00020547,2]
[328833782,1717855873171,-601.82,0.00020547,2]
[328833783,1717855873181,-1687.64,0.00020547,2]
[328833784,1717855873191,-500.0,0.00020547,2]
[328833785,1717855873201,-871.53,0.00020547,2]
[328833786,1717855873211,-1512.7,0.00020547,2]
[328833787,1717855873221,-528.82,0.00020547,2]
[328833788,1717855873231,-500.91,0.00020547,2]
[328833789,1717855873242,-828.48,0.00020547,2]
[328833790,1717855873253,-1556.87,0.00020547,2]
[328833791,1717855873263,-536.0,0.00020547,2]
[328833792,1717855873273,-1276.66,0.00020547,2]
[328833793,1717855873284,-804.5,0.00020547,2]
[328833794,1717855873294,-500.0,0.00020547,2]
[328833795,1717855873304,-2157.52,0.00020547,2]
[328833796,1717855873314,-500.0,0.00020547,2]
[328833797,1717855873324,-500.0,0.00020547,2]
[328833798,1717855873335,-638.80929709,0.00020547,2]
[328833799,1717855873344,-992.02,0.00020547,2]
[328833800,1717855873354,-542.52,0.00020547,2]
[328833801,1717855873364,-751.63,0.00020547,2]
[328833802,1717855873375,-558.38,0.00020547,2]
[328833803,1717855873385,-1485.0,0.00020547,2]
[328833804,1717855873394,-516.33,0.00020547,2]
[328833805,1717855873404,-1620.66,0.00020547,2]
[328833806,1717855873413,-2740.38,0.00020547,2]
[328833807,1717855873423,-748.59,0.00020547,2]
[328833808,1717855873433,-2769.46,0.00020547,2]
[328833809,1717855873444,-545.82,0.00020547,2]
[328833810,1717855873454,-1406.26,0.00020547,2]
[328833811,1717855873464,-1188.05,0.00020547,2]
[328833812,1717855873474,-500.0,0.00020547,2]
[328833813,1717855873484,-1936.86,0.00020547,2]
[328833814,1717855873494,-500.0,0.00020547,2]
[328833815,1717855873504,-3481.6,0.00020547,2]
[328833816,1717855873514,-830.79,0.00020547,2]
[328833817,1717855873524,-500.0,0.00020547,2]
[328833818,1717855873534,-4055.43,0.00020547,2]
[328833819,1717855873544,-535.13,0.00020547,2]
[328833820,1717855873553,-1711.92,0.00020547,2]
[328833821,1717855873563,-7839.29,0.00020547,2]
[328833822,1717855873574,-3000.0,0.00020547,2]
[328833823,1717855873585,-3000.0,0.00020547,2]
[328833824,1717855873594,-500.0,0.00020547,2]
[328833825,1717855873605,-3000.0,0.00020547,2]
[328833826,1717855873615,-3000.0,0.00020547,2]
[328833827,1717855873625,-3000.0,0.00020547,2]
[328833828,1717855873635,-3000.0,0.00020547,2]
[328833829,1717855873646,-3000.0,0.00020547,2]
[328833830,1717855873656,-3000.0,0.00020547,2]
[328833831,1717855873666,-3000.0,0.00020547,2]
[328833832,1717855873676,-3000.0,0.00020547,2]
[328833833,1717855873687,-3000.0,0.00020547,2]
[328833834,1717855873697,-3000.0,0.00020547,2]
[328833835,1717855873707,-4240.14,0.00020547,2]
[328833836,1717855873717,-3000.0,0.00020547,2]
[328833837,1717855873728,-2374.26660021,0.00020547,2]
[328833838,1717855873738,-500.0,0.00020547,2]
[328833839,1717855873748,-777.81,0.00020547,2]
[328833840,1717855873759,-656.61,0.00020547,2]
[328833841,1717855873770,-837.81,0.00020547,2]
[328833842,1717855873780,-2125.44,0.00020547,2]
[328833843,1717855873790,-858.72,0.00020547,2]
[328833844,1717855873800,-557.3,0.00020547,2]
[328833845,1717855873809,-1581.68,0.00020547,2]
[328833846,1717855873820,-2009.83,0.00020547,2]
[328833847,1717855873830,-719.8,0.00020547,2]
[328833848,1717855873841,-5176.99,0.00020547,2]
[328833849,1717855873851,-639.4,0.00020547,2]
[328833850,1717855873860,-9141.08,0.00020547,2]
[328833851,1717855873870,-9689.53,0.00020547,2]
[328833852,1717855873880,-1831.62,0.00020547,2]
[328833853,1717855873890,-2465.76,0.00020547,2]
[328833854,1717855873899,-5196.1,0.00020547,2]
[328833855,1717855873909,-784.21,0.00020547,2]
[328833856,1717855873919,-353.318025,0.00020547,2]
[328833857,1717855873929,-2008.87,0.00020547,2]
[328833858,1717855873939,-1321.87,0.00020547,2]
[328833859,1717855873949,-731.55,0.00020547,2]
[328833860,1717855873959,-500.48,0.00020547,2]
[328833861,1717855873968,-913.11,0.00020547,2]
[328833862,1717855873982,-882.37,0.00020547,2]
[328833863,1717855873992,-360.98962468,0.00020547,2]
[328833864,1717855874002,-500.0,0.00020547,2]
[328833865,1717855874012,-529.22,0.00020547,2]
[328833866,1717855874022,-1072.16,0.00020547,2]
[328833867,1717855874105,-2705.64,0.00020547,2]
[328833868,1717855874116,-500.0,0.00020547,2]
[328833869,1717855874126,-1015.43,0.00020821,2]
[328833870,1717855874135,-568.09,0.00020821,2]
[328833871,1717855874146,-561.44,0.00020821,2]
[328833872,1717855874155,-1017.89,0.00020821,4]
[328833873,1717855874165,-500.0,0.00020821,2]
[328833874,1717855874175,-1462.49,0.00020821,2]
[328833875,1717855874185,-233.91857307,0.00020821,2]
[328833876,1717855874195,-570.14,0.00020821,2]
[328833877,1717855874205,-1790.87,0.00020821,2]
[328833878,1717855874215,-586.65,0.00020821,2]
[328833879,1717855874224,-654.96,0.00020821,2]
[328833880,1717855874235,-500.0,0.00020821,2]
[328833881,1717855874244,-1480.04,0.00020821,2]
[328833882,1717855874254,-877.21,0.00020821,2]
[328833883,1717855874263,-619.8,0.00020821,2]
[328833884,1717855874273,-975.62,0.00020821,2]
[328833885,1717855874283,-542.66003407,0.00020821,2]
[328833886,1717855874466,-118.16996593,0.00020821,2]
[328833887,1717855874476,-537.35,0.00020821,2]
[328833888,1717855874485,-1571.4,0.00020821,2]
[328833889,1717855874495,-920.56,0.00020821,2]
[328833890,1717855874505,-732.6,0.00020821,2]
[328833891,1717855874514,-1098.5,0.00020821,2]
[328833892,1717855874524,-500.0,0.00020821,2]
[328833893,1717855874534,-601.82,0.00020821,2]
[328833894,1717855874543,-1687.64,0.00020821,2]
[328833895,1717855874553,-500.0,0.00020821,2]
[328833896,1717855874562,-871.53,0.00020821,2]
[328833897,1717855874572,-1512.7,0.00020821,2]
[328833898,1717855874582,-528.82,0.00020821,2]
[328833899,1717855874592,-500.91,0.00020821,2]
[328833900,1717855874602,-828.48,0.00020821,2]
[328833901,1717855874612,-1556.87,0.00020821,2]
[328833902,1717855874623,-536.0,0.00020821,2]
[328833903,1717855874632,-1276.66,0.00020821,2]
[328833904,1717855874642,-804.5,0.00020821,2]
[328833905,1717855874652,-502.672245,0.00020821,2]
[328833906,1717855874662,-2157.52,0.00020821,2]
[328833907,1717855874671,-500.0,0.00020821,2]
[328833908,1717855874681,-500.0,0.00020821,2]
[328833909,1717855874691,-992.02,0.00020821,2]
[328833910,1717855874701,-542.52,0.00020821,2]
[328833911,1717855874711,-751.63,0.00020821,2]
[328833912,1717855874721,-558.38,0.00020821,2]
[328833913,1717855874731,-1485.0,0.00020821,2]
[328833914,1717855874741,-516.33,0.00020821,2]
[328833915,1717855874751,-1620.66,0.00020821,2]
[328833916,1717855874761,-2740.38,0.00020821,2]
[328833917,1717855874771,-748.59,0.00020821,2]
[328833918,1717855874782,-2769.46,0.00020821,2]
[328833919,1717855874793,-545.82,0.00020821,2]
[328833920,1717855874804,-1406.26,0.00020821,2]
[328833921,1717855874815,-1188.05,0.00020821,2]
[328833922,1717855874825,-500.0,0.00020821,2]
[328833923,1717855874835,-1936.86,0.00020821,2]
[328833924,1717855874846,-500.0,0.00020821,2]
[328833925,1717855874856,-3481.6,0.00020821,2]
[328833926,1717855874866,-830.79,0.00020821,2]
[328833927,1717855874875,-500.0,0.00020821,2]
[328833928,1717855874887,-4055.43,0.00020821,2]
[328833929,1717855874897,-535.13,0.00020821,2]
[328833930,1717855874907,-1711.92,0.00020821,2]
[328833931,1717855874917,-7839.29,0.00020821,2]
[328833932,1717855874928,-500.0,0.00020821,2]
[328833933,1717855874938,-4240.14,0.00020821,2]
[328833934,1717855874949,-500.0,0.00020821,2]
[328833935,1717855874959,-777.81,0.00020821,2]
[328833936,1717855874970,-656.61,0.00020821,2]
[328833937,1717855874985,-837.81,0.00020821,2]
[328833938,1717855874995,-2125.44,0.00020821,2]
[328833939,1717855875005,-858.72,0.00020821,2]
[328833940,1717855875015,-557.3,0.00020821,2]
[328833941,1717855875025,-929.86883739,0.00020821,2]
[328833942,1717855875877,871.21736108,0.00013149,2]
[328833943,1717855875985,292.31118058,0.00013149,2]
[328833944,1717855908532,16175.12436626,0.00013149,2]
[328833945,1717855954807,384.66,0.00010959,2]
[328833946,1717855977590,154.9690062,9.999e-05,2]
[328833949,1717856132157,2036.219754,0.00016986,7]
[328833950,1717856252948,1018.109877,0.00016712,7]
[328833951,1717856370851,509.0549385,0.00016712,7]
[328833952,1717856492215,254.52746925,0.00016712,7]
[328833953,1717856612034,254.52746924,0.00016712,7]
[328834030,1717857032798,-178.212077,0.00014724,2]
[328834032,1717857032808,-164.59629886,0.00014885,2]
[328834034,1717857032818,-19226.38763809,0.00014886,2]
[328834036,1717857032827,-12428.73943162,0.00014887,2]
[328834038,1717857032839,-9533.98857798,0.00014887,2]
[328834040,1717857032849,-187.833703,0.00015371,2]
[328834042,1717857032858,-924.58227825,0.00016253,2]
[328834044,1717857032868,-175.24279976,0.00016338,2]
[328834046,1717857032879,-213.96239743,0.00016338,2]
[328834048,1717857032889,-796.10207888,0.0001639,2]
[328834196,1717857043973,-1798.75826366,0.0001639,2]
[328834198,1717857043986,-1837.19103936,0.0001639,2]
[328834214,1717857044383,-2886.42314649,0.0001639,2]
[328834218,1717857044395,-309.81409605,0.00016436,2]
[328834222,1717857044404,-505.78237993,0.00016438,2]
[328834226,1717857044414,-500.0,0.00016438,2]
[328834230,1717857044424,-584.29218765,0.00016438,2]
[328834234,1717857044434,-500.0,0.00016438,2]
[328834238,1717857044445,-500.0,0.00016438,2]
[328834242,1717857044455,-500.0,0.00016438,2]
[328834246,1717857044466,-500.0,0.00016438,2]
[328834250,1717857044476,-249.55785547,0.00016438,2]
[328834253,1717857044487,-500.0,0.00016438,2]
[328834256,1717857044496,-500.0,0.00016438,2]
[328834259,1717857044507,-500.0,0.00016438,2]
[328834262,1717857044518,-500.0,0.00016438,2]
[328834265,1717857044528,-500.0,0.00016438,2]
[328834267,1717857044538,-500.0,0.00016438,2]
[328834270,1717857044548,-500.0,0.00016438,2]
[328834273,1717857044558,-500.0,0.00016438,2]
[328834275,1717857044568,-500.0,0.00016438,2]
[328834277,1717857044577,-500.0,0.00016438,2]
[328834279,1717857044587,-500.0,0.00016438,2]
[328834281,1717857044597,-500.0,0.00016438,2]
[328834283,1717857044607,-500.0,0.00016438,2]
[328834285,1717857044617,-500.0,0.00016438,2]
[328834286,1717857044628,-500.0,0.00016438,2]
[328834288,1717857044638,-500.0,0.00016438,2]
[328834290,1717857044648,-457.23110648,0.00016438,2]
[328834292,1717857044657,-500.0,0.00016438,2]
[328834294,1717857044667,-500.0,0.00016438,2]
[328834296,1717857044688,-500.0,0.00016438,2]
[328834297,1717857044699,-500.0,0.00016438,2]
[328834298,1717857044710,-500.0,0.00016438,2]
[328834299,1717857044720,-500.0,0.00016438,2]
[328834300,1717857044731,-500.0,0.00016438,2]
[328834301,1717857044741,-500.0,0.00016438,2]
[328834302,1717857044752,-500.0,0.00016438,2]
[328834303,1717857044763,-364.20641032,0.00016438,2]
[328834304,1717857044773,-500.0,0.00016438,2]
[328834305,1717857044784,-500.0,0.00016438,2]
[328834306,1717857044794,-500.0,0.00016438,2]
[328834307,1717857044804,-636.46344884,0.00016438,2]
[328834308,1717857044816,-192.96702645,0.00016438,2]
[328834309,1717857044826,-500.0,0.00016438,2]
[328834310,1717857044837,-500.0,0.00016438,2]
[328834311,1717857044848,-500.0,0.00016438,2]
[328834312,1717857044858,-500.0,0.00016438,2]
[328834313,1717857044868,-500.0,0.00016438,2]
[328834314,1717857044879,-500.0,0.00016438,2]
[328834315,1717857044889,-500.0,0.00016438,2]
[328834316,1717857044900,-500.0,0.00016438,2]
[328834317,1717857044911,-500.0,0.00016438,2]
[328834318,1717857044922,-500.0,0.00016438,2]
[328834319,1717857044932,-500.0,0.00016438,2]
[328834320,1717857044943,-500.0,0.00016438,2]
[328834321,1717857044953,-500.0,0.00016438,2]
[328834322,1717857044964,-500.0,0.00016438,2]
[328834323,1717857044975,-500.0,0.00016438,2]
[328834324,1717857044986,-500.0,0.00016438,2]
[328834325,1717857044996,-500.0,0.00016438,2]
[328834326,1717857045007,-500.0,0.00016438,2]
[328834327,1717857045018,-500.0,0.00016438,2]
[328834328,1717857045028,-500.0,0.00016438,2]
[328834329,1717857045039,-500.0,0.00016438,2]
[328834330,1717857045048,-500.0,0.00016438,2]
[328834331,1717857045058,-500.0,0.00016438,2]
[328834332,1717857045070,-500.0,0.00016438,2]
[328834333,1717857045080,-500.0,0.00016438,2]
[328834334,1717857045090,-500.0,0.00016438,2]
[328834335,1717857045101,-500.0,0.00016438,2]
[328834336,1717857045111,-500.0,0.00016438,2]
[328834337,1717857045121,-905.59,0.00016438,2]
[328834338,1717857045131,-500.0,0.00016438,2]
[328834339,1717857045141,-500.0,0.00016438,2]
[328834340,1717857045151,-500.0,0.00016438,2]
[328834341,1717857045161,-500.0,0.00016438,2]
[328834342,1717857045171,-500.0,0.00016438,2]
[328834343,1717857045182,-500.0,0.00016438,2]
[328834344,1717857045191,-500.0,0.00016438,2]
[328834345,1717857045201,-500.0,0.00016438,2]
[328834346,1717857045211,-500.0,0.00016438,2]
[328834347,1717857045221,-500.0,0.00016438,2]
[328834348,1717857045231,-500.0,0.00016438,2]
[328834349,1717857045241,-500.0,0.00016438,2]
[328834350,1717857045251,-500.0,0.00016438,2]
[328834351,1717857045260,-500.0,0.00016438,2]
[328834352,1717857045270,-500.0,0.00016438,2]
[328834353,1717857045281,-500.0,0.00016438,2]
[328834354,1717857045291,-500.0,0.00016438,2]
[328834355,1717857045301,-500.0,0.00016438,2]
[328834356,1717857045311,-500.0,0.00016438,2]
[328834357,1717857045321,-500.0,0.00016438,2]
[328834358,1717857045331,-500.0,0.00016438,2]
[328834359,1717857045340,-500.0,0.00016438,2]
[328834360,1717857045352,-500.0,0.00016438,2]
[328834361,1717857045363,-500.0,0.00016438,2]
[328834362,1717857045372,-500.0,0.00016438,2]
[328834363,1717857045382,-500.0,0.00016438,2]